{"text_format":"1","workbook":"xlsx","n_sheets":1,"sheets":["Sheet1"],"not_rendered":{"charts":0,"images":1,"macros":1,"external_links":0,"defined_names":1,"comments":0,"pivot_tables":0},"unopened":[],"bounds":{"document_bytes":16777216,"sheet_cells":100000,"rows_first":2000,"rows_last":500,"rows_between":2000,"halvings":0,"cell_chars":16384,"cell_head_chars":4096},"cells_cut":0,"cells_raw":0,"read":"whole","date_system":"1900"}

{"sheet":"Sheet1","index":0,"n_rows":106,"n_cols":8,"rows_kept":106,"cut":false,"hidden":false,"merged":[[1,3,1,6],[1,7,4,7],[1,2,4,2]]}
[]
[null,null,"الترقيم التلقائى  المستخدم بدالة Row","البحث بأى حرف من الاسم مع الترقيم التلقائى",null,null,null,"اضغط كليك يمين للفأرة على اسم الشيت ثم عرض التعليمات البرمجية لظهور الكود المستخدم فى الفلترة"]
[]
[]
[null,null,null,"الرقم","الاســــــــــــــــــــــــــــــــــــــــــم","العنوان","الموبايل"]
[null,null,null,{"$f":"IF(E6=\"\",\"\",ROW()-5)","v":1},"عمر جاد ابونصار","سوهاج","0123446588"]
[null,null,null,{"$f":"IF(E7=\"\",\"\",ROW()-5)","v":2},"كريم عزت","سوهاج","0251314558"]
[null,null,null,3,"ياسر محمد","سوهاج","0231121686"]
[null,null,null,4,"ياسين على","سوهاج","0554960554"]
[null,null,null,5,"ياسر خليل","سوهاج","0125787888"]
[null,null,null,6,"ياسر العربى","سوهاج","01122558947"]
[null,null,null,7,"عمر جاد ابونصار","سوهاج","0123446588"]
[null,null,null,{"$f":"IF(E13=\"\",\"\",ROW()-5)","v":8},"كريم عزت","مصر","0251314558"]
[null,null,null,9,"ياسر محمد","القاهرة","0231121686"]
[null,null,null,10,"ياسين على","اسيوط","0554960554"]
[null,null,null,11,"ياسر خليل","مصر","0125787888"]
[null,null,null,12,"ياسر العربى","مصر","01122558947"]
[null,null,null,13,"عمر جاد ابونصار","سوهاج","0123446588"]
[null,null,null,14,"كريم عزت","مصر","0251314558"]
[null,null,null,15,"ياسر محمد","القاهرة","0231121686"]
[null,null,null,{"$f":"IF(E21=\"\",\"\",ROW()-5)","v":16},"عمر جاد ابونصار","سوهاج","0123446588"]
[null,null,null,{"$f":"IF(E22=\"\",\"\",ROW()-5)","v":17},"كريم عزت","مصر","0251314558"]
[null,null,null,18,"ياسر محمد","القاهرة","0231121686"]
[null,null,null,19,"ياسين على","اسيوط","0554960554"]
[null,null,null,20,"ياسر خليل","مصر","0125787888"]
[null,null,null,21,"ياسر العربى","مصر","01122558947"]
[null,null,null,22,"عمر جاد ابونصار","سوهاج","0123446588"]
[null,null,null,23,"كريم عزت","مصر","0251314558"]
[null,null,null,24,"ياسر محمد","القاهرة","0231121686"]
[null,null,null,""]
[null,null,null,""]
[null,null,null,""]
[null,null,null,""]
[null,null,null,""]
[null,null,null,""]
[null,null,null,""]
[null,null,null,""]
[null,null,null,""]
[null,null,null,""]
[null,null,null,""]
[null,null,null,""]
[null,null,null,""]
[null,null,null,""]
[null,null,null,""]
[null,null,null,""]
[null,null,null,""]
[null,null,null,""]
[null,null,null,""]
[null,null,null,""]
[null,null,null,""]
[null,null,null,""]
[null,null,null,""]
[null,null,null,""]
[null,null,null,""]
[null,null,null,""]
[null,null,null,""]
[null,null,null,""]
[null,null,null,""]
[null,null,null,""]
[null,null,null,""]
[null,null,null,""]
[null,null,null,""]
[null,null,null,""]
[null,null,null,""]
[null,null,null,""]
[null,null,null,""]
[null,null,null,""]
[null,null,null,""]
[null,null,null,""]
[null,null,null,""]
[null,null,null,{"$f":"IF(E71=\"\",\"\",ROW()-5)","v":""}]
[null,null,null,""]
[null,null,null,""]
[null,null,null,""]
[null,null,null,""]
[null,null,null,""]
[null,null,null,""]
[null,null,null,""]
[null,null,null,""]
[null,null,null,""]
[null,null,null,""]
[null,null,null,""]
[null,null,null,""]
[null,null,null,""]
[null,null,null,""]
[null,null,null,""]
[null,null,null,""]
[null,null,null,""]
[null,null,null,""]
[null,null,null,""]
[null,null,null,""]
[null,null,null,""]
[null,null,null,""]
[null,null,null,""]
[null,null,null,""]
[null,null,null,""]
[null,null,null,""]
[null,null,null,{"$f":"IF(E98=\"\",\"\",ROW()-5)","v":""}]
[null,null,null,{"$f":"IF(E99=\"\",\"\",ROW()-5)","v":""}]
[null,null,null,""]
[null,null,null,""]
[null,null,null,""]
[null,null,null,""]
[null,null,null,""]
[null,null,null,""]
[null,null,null,""]